[Event "XXIX Cracovia 2018"]
[Site "Krakow"]
[Date "2019.01.03"]
[Round "8"]
[White "Naboka, Sergey"]
[Black "Chylewski, Patryk"]
[Result "1/2-1/2"]
[ECO "D01"]
[WhiteElo "2324"]
[BlackElo "2268"]
[Annotator "NA"]
[PlyCount "39"]
[EventDate "2018.12.27"]
[EventType "swiss"]
[EventCountry "POL"]
[SourceTitle "playchess.com"]
[Source "ChessBase"]
[SourceQuality "1"]
[TimeControl "40/5400+30:1800+30"]

1. d4 {[%emt 0:00:16]} Nf6 {[%emt 0:00:31]} 2. Nc3 {[%emt 0:00:31]} d5 {[%emt 0:00:08]} 3. Bg5 {[%emt 0:00:11]} Nbd7 {[%emt 0:00:14]} 4. Qd3 {[%emt 0:01:25]} c5 {[%emt 0:05:58]} 5. e4 {[%emt 0:07:38]} dxe4 {[%emt 0:09:36]} 6. Nxe4 {[%emt 0:01:11]} e6 {[%emt 0:03:24]} 7. Nf3 {[%emt 0:18:28]} Be7 {[%emt 0:02:19]} 8. Bxf6 {[%emt 0:02:27]} Nxf6 {[%emt 0:06:26]} 9. dxc5 {[%emt 0:06:03]} Qxd3 {[%emt 0:07:05]} 10. cxd3 {[%emt 0:05:35]} Nxe4 {[%emt 0:00:19]} 11. dxe4 {[%emt 0:00:05]} Bxc5 {[%emt 0:00:07]} 12. Bb5+ {[%emt 0:00:40]} Bd7 {[%emt 0:00:46]} 13. Bxd7+ {[%emt 0:03:59]} Kxd7 {[%emt 0:00:06]} 14. Ke2 {[%emt 0:01:06]} Ke7 {[%emt 0:00:34]} 15. Rac1 {[%emt 0:01:34]} Bb6 {[%emt 0:03:15]} 16. Rhd1 {[%emt 0:03:44]} Rhd8 {[%emt 0:00:48]} 17. Rxd8 {[%emt 0:04:11]} Rxd8 {[%emt 0:00:42]} 18. Rc2 {[%emt 0:03:54]} Rd7 {[%emt 0:01:17]} 19. g3 {[%emt 0:13:17]} Rc7 {[%emt 0:01:09]} 20. Rxc7+ {[%emt 0:00:43]} 1/2-1/2

[Event "XXIX Cracovia 2018"]
[Site "Krakow"]
[Date "2019.01.03"]
[Round "8"]
[White "Vojtek, Vladimir"]
[Black "Jaskolka, Tomasz"]
[Result "0-1"]
[ECO "C15"]
[WhiteElo "2313"]
[BlackElo "2222"]
[Annotator "NA"]
[PlyCount "138"]
[EventDate "2018.12.27"]
[EventType "swiss"]
[EventCountry "POL"]
[SourceTitle "playchess.com"]
[Source "ChessBase"]
[SourceQuality "1"]
[TimeControl "40/5400+30:1800+30"]

1. e4 e6 2. d4 d5 3. Nc3 Bb4 4. a3 Bxc3+ 5. bxc3 dxe4 6. Qg4 Nf6 7. Qxg7 Rg8 8. Qh6 Rg6 9. Qd2 c5 10. Bb2 Nd5 11. O-O-O c4 12. Qe2 b5 13. Qxe4 Bb7 14. Nf3 Nd7 15. h4 Qc7 16. h5 Rg8 17. Ne5 Nxe5 18. Qxe5 Qxe5 19. dxe5 Rg5 20. Re1 O-O-O 21. Rh4 Ne7 22. a4 a6 23. Rf4 Nd5 24. Rxf7 Rxh5 25. g4 Rh1 26. Rd1 Nc7 27. Be2 Rdxd1+ 28. Bxd1 bxa4 29. Kd2 Bd5 30. f4 Nb5 31. f5 a3 32. Bxa3 Nxa3 33. f6 Nb1+ 34. Ke3 Rxd1 35. Rxh7 Re1+ 36. Kd4 Re4+ 37. Kc5 Rxg4 38. f7 Rf4 39. Rh8+ Kd7 40. f8=Q Rxf8 41. Rxf8 Nxc3 42. Rf7+ Ke8 43. Ra7 Ne4+ 44. Kd4 Nd2 45. Kc5 Nf3 46. Rxa6 Nxe5 47. Ra7 Nf3 48. Rg7 Ne1 49. c3 Nd3+ 50. Kd4 Nf4 51. Ke3 e5 52. Ra7 Ng6 53. Ra5 Ne7 54. Ra7 Kf7 55. Rd7 Ke6 56. Rd8 Nf5+ 57. Ke2 e4 58. Re8+ Kd6 59. Kd2 Be6 60. Ke2 Kd5 61. Kd2 e3+ 62. Ke2 Bf7 63. Rh8 Ke4 64. Rd8 Bh5+ 65. Ke1 Bg4 66. Rd7 Nh4 67. Rg7 Nf3+ 68. Ke2 Ne5+ 69. Kf1 e2+ 0-1

[Event "XXIX Cracovia 2018"]
[Site "Krakow"]
[Date "2019.01.03"]
[Round "8"]
[White "Zakrzewski, Marek"]
[Black "Kokoszczynski, Jan"]
[Result "1-0"]
[ECO "C54"]
[WhiteElo "2311"]
[BlackElo "2242"]
[Annotator "NA"]
[PlyCount "117"]
[EventDate "2018.12.27"]
[EventType "swiss"]
[EventCountry "POL"]
[SourceTitle "playchess.com"]
[Source "ChessBase"]
[SourceQuality "1"]
[TimeControl "40/5400+30:1800+30"]

1. e4 {[%emt 0:00:00]} e5 {[%emt 0:00:00]} 2. Nf3 {[%emt 0:00:03]} Nc6 {[%emt 0:00:00]} 3. Bc4 {[%emt 0:02:09]} Bc5 {[%emt 0:00:12]} 4. c3 {[%emt 0:00:11]} Nf6 {[%emt 0:00:10]} 5. d3 {[%emt 0:00:26]} a6 {[%emt 0:03:59]} 6. Bb3 {[%emt 0:04:10]} Ba7 {[%emt 0:07:24]} 7. O-O {[%emt 0:00:57]} d6 {[%emt 0:02:46]} 8. Nbd2 {[%emt 0:03:52]} O-O {[%emt 0:00:43]} 9. h3 {[%emt 0:01:45]} h6 {[%emt 0:00:33]} 10. Re1 {[%emt 0:00:27]} Be6 {[%emt 0:03:24]} 11. Bc2 {[%emt 0:03:55]} Re8 {[%emt 0:00:57]} 12. Nf1 {[%emt 0:02:34]} d5 {[%emt 0:03:22]} 13. exd5 {[%emt 0:03:53]} Bxd5 {[%emt 0:03:00]} 14. Ng3 {[%emt 0:00:45]} Qd7 {[%emt 0:01:26]} 15. Be3 {[%emt 0:03:43]} Bxe3 {[%emt 0:08:12]} 16. Rxe3 {[%emt 0:02:56]} Rad8 {[%emt 0:03:47]} 17. Nh4 {[%emt 0:08:11]} Be6 {[%emt 0:04:05]} 18. Nh5 {[%emt 0:01:54]} Nxh5 {[%emt 0:11:56]} 19. Qxh5 {[%emt 0:00:13]} f5 {[%emt 0:02:03]} 20. d4 {[%emt 0:11:15]} Bf7 {[%emt 0:15:24]} 21. Qf3 {[%emt 0:26:43]} exd4 {[%emt 0:06:09]} 22. Rxe8+ {[%emt 0:02:49]} Rxe8 {[%emt 0:03:55]} 23. Nxf5 {[%emt 0:00:28]} Be6 {[%emt 0:05:40]} 24. Re1 {[%emt 0:04:40]} dxc3 {[%emt 0:05:50]} 25. Qxc3 {[%emt 0:01:52]} Bxf5 {[%emt 0:00:59]} 26. Rxe8+ {[%emt 0:00:11]} Qxe8 {[%emt 0:00:04]} 27. Bxf5 {[%emt 0:00:08]} Kh8 {[%emt 0:05:39]} 28. Kh2 {[%emt 0:08:31]} Qd8 {[%emt 0:00:31]} 29. Qg3 {[%emt 0:00:34]} Nd4 {[%emt 0:01:01]} 30. Be4 {[%emt 0:00:11]} b6 {[%emt 0:01:10]} 31. Qg4 {[%emt 0:03:00]} Qd6+ {[%emt 0:00:32]} 32. g3 {[%emt 0:00:11]} Ne6 {[%emt 0:00:33]} 33. Qf5 {[%emt 0:01:27]} Nf8 {[%emt 0:00:07]} 34. Kg2 {[%emt 0:00:16]} a5 {[%emt 0:00:21]} 35. Qf7 {[%emt 0:00:58]} Ne6 {[%emt 0:00:58]} 36. Qf5 {[%emt 0:01:00]} Nf8 {[%emt 0:00:05]} 37. Bd5 {[%emt 0:00:19]} Qe7 {[%emt 0:00:07]} 38. h4 {[%emt 0:00:21]} g6 {[%emt 0:00:44]} 39. Qf3 {[%emt 0:00:23]} Kg7 {[%emt 0:01:05]} 40. h5 {[%emt 0:00:00]} gxh5 {[%emt 0:00:00]} 41. Qxh5 {[%emt 0:04:30]} Ng6 {[%emt 0:06:01]} 42. Qf5 {[%emt 0:01:33]} Qf6 {[%emt 0:03:57]} 43. Qc8 {[%emt 0:01:10]} Nf4+ {[%emt 0:14:24]} 44. gxf4 {[%emt 0:00:13]} Qg6+ {[%emt 0:00:02]} 45. Kh3 {[%emt 0:05:58]} Qh5+ {[%emt 0:00:16]} 46. Kg3 {[%emt 0:00:07]} Qxd5 {[%emt 0:00:12]} 47. Qxc7+ {[%emt 0:00:09]} Kg8 {[%emt 0:02:30]} 48. Qxb6 {[%emt 0:00:50]} Qxa2 {[%emt 0:02:46]} 49. Qg6+ {[%emt 0:01:53]} Kf8 {[%emt 0:00:06]} 50. Qxh6+ {[%emt 0:00:03]} Kf7 {[%emt 0:00:41]} 51. Qh5+ {[%emt 0:00:43]} Kg7 {[%emt 0:00:26]} 52. Qe5+ {[%emt 0:00:16]} Kf7 {[%emt 0:00:41]} 53. f5 {[%emt 0:04:14]} Qa1 {[%emt 0:03:20]} 54. Kg2 {[%emt 0:00:58]} Qc1 {[%emt 0:01:24]} 55. Qe6+ {[%emt 0:01:12]} Kf8 {[%emt 0:00:13]} 56. Qf6+ {[%emt 0:00:47]} Kg8 {[%emt 0:00:19]} 57. Qg6+ {[%emt 0:00:46]} Kf8 {[%emt 0:00:05]} 58. f6 {[%emt 0:00:48]} Qc6+ {[%emt 0:00:06]} 59. f3 {[%emt 0:00:07]} 1-0

[Event "XXIX Cracovia 2018"]
[Site "Krakow"]
[Date "2019.01.03"]
[Round "8"]
[White "Grela, Kacper"]
[Black "Gumularz, Szymon"]
[Result "1/2-1/2"]
[ECO "B22"]
[WhiteElo "2305"]
[BlackElo "2462"]
[Annotator "ChessBase"]
[PlyCount "83"]
[EventDate "2018.12.27"]
[EventType "swiss"]
[EventCountry "POL"]
[SourceTitle "playchess.com"]
[Source "ChessBase"]
[SourceQuality "1"]
[TimeControl "40/5400+30:1800+30"]

1. e4 {[%emt 0:00:00]} c5 {[%emt 0:00:00]} 2. c3 {[%emt 0:00:51]} d5 {[%emt 0:08:14]} 3. exd5 {[%emt 0:00:09]} Qxd5 {[%emt 0:00:06]} 4. d4 {[%emt 0:00:11]} Nc6 {[%emt 0:14:03]} 5. Nf3 {[%emt 0:00:07]} Bf5 {[%emt 0:00:29]} 6. Be2 {[%emt 0:05:58]} cxd4 {[%emt 0:06:15]} 7. cxd4 {[%emt 0:00:07]} Bxb1 {[%emt 0:00:05]} 8. Rxb1 {[%emt 0:00:06]} e6 {[%emt 0:00:02]} 9. O-O {[%emt 0:00:10]} Bd6 {[%emt 0:03:11]} 10. a3 {[%emt 0:00:27]} Nge7 {[%emt 0:02:46]} 11. Be3 {[%emt 0:03:58]} O-O {[%emt 0:00:10]} 12. b4 {[%emt 0:05:19]} Nf5 {[%emt 0:03:48]} 13. Bd3 {[%emt 0:09:46]} Rfd8 {[%emt 0:09:33]} 14. b5 {[%emt 0:07:05]} Ncxd4 {[%emt 0:07:15]} 15. Nxd4 {[%emt 0:15:08]} Nxd4 {[%emt 0:00:35]} 16. Bxd4 {[%emt 0:00:17]} Qxd4 {[%emt 0:00:25]} 17. Bxh7+ {[%emt 0:00:21]} Kxh7 {[%emt 0:00:03]} 18. Qxd4 {[%emt 0:00:06]} Bxh2+ {[%emt 0:00:02]} 19. Kxh2 {[%emt 0:00:07]} Rxd4 {[%emt 0:00:02]} 20. Rfc1 {[%emt 0:00:11]} Kg6 {[%emt 0:10:20]} 21. Rc7 {[%emt 0:03:14]} Rh8+ {[%emt 0:02:19]} 22. Kg3 {[%emt 0:01:33]} Rd3+ {[%emt 0:01:21]} 23. f3 {[%emt 0:00:12]} Rxa3 {[%emt 0:00:36]} 24. b6 {[%emt 0:13:33]} axb6 {[%emt 0:13:34]} 25. Rxb6 {[%emt 0:03:51]} Rb8 {[%emt 0:05:43]} 26. Rbxb7 {[%emt 0:02:40]} Rxb7 {[%emt 0:00:04]} 27. Rxb7 {[%emt 0:00:05]} e5 {[%emt 0:00:34]} 28. Rb5 {[%emt 0:03:40]} f6 {[%emt 0:00:28]} 29. Rb7 {[%emt 0:00:18]} f5 {[%emt 0:04:21]} 30. Rb2 {[%emt 0:09:04]} Kg5 {[%emt 0:00:22]} 31. Kf2 {[%emt 0:00:20]} Ra7 {[%emt 0:01:49]} 32. g3 {[%emt 0:00:24]} Re7 {[%emt 0:00:13]} 33. Rb5 {[%emt 0:01:12]} Kf6 {[%emt 0:00:08]} 34. Ra5 {[%emt 0:00:31]} e4 {[%emt 0:01:39]} 35. Ke3 {[%emt 0:01:03]} g6 {[%emt 0:00:17]} 36. Ra6+ {[%emt 0:01:15]} Kg5 {[%emt 0:00:43]} 37. Ra5 {[%emt 0:00:24]} Rb7 {[%emt 0:04:29]} 38. fxe4 {[%emt 0:00:42]} Kg4 {[%emt 0:00:05]} 39. exf5 {[%emt 0:00:58]} gxf5 {[%emt 0:00:08]} 40. Kf2 {[%emt 0:00:00]} Rb2+ {[%emt 0:00:00]} 41. Kg1 {[%emt 0:04:45]} Kxg3 {[%emt 0:00:54]} 42. Rxf5 {[%emt 0:00:39]} 1/2-1/2

[Event "XXIX Cracovia 2018"]
[Site "Krakow"]
[Date "2019.01.03"]
[Round "8"]
[White "Dzierzak, Radoslaw"]
[Black "Hnydiuk, Aleksander"]
[Result "0-1"]
[ECO "B59"]
[WhiteElo "2283"]
[BlackElo "2409"]
[Annotator "NA"]
[PlyCount "86"]
[EventDate "2018.12.27"]
[EventType "swiss"]
[EventCountry "POL"]
[SourceTitle "playchess.com"]
[Source "ChessBase"]
[SourceQuality "1"]
[TimeControl "40/5400+30:1800+30"]

1. e4 {[%emt 0:00:00]} c5 {[%emt 0:01:03]} 2. Nf3 {[%emt 0:00:00]} Nc6 {[%emt 0:00:05]} 3. d4 {[%emt 0:00:09]} cxd4 {[%emt 0:00:05]} 4. Nxd4 {[%emt 0:00:06]} Nf6 {[%emt 0:00:15]} 5. Nc3 {[%emt 0:00:28]} d6 {[%emt 0:00:05]} 6. Be2 {[%emt 0:01:25]} e5 {[%emt 0:00:17]} 7. Nb3 {[%emt 0:01:20]} Be7 {[%emt 0:00:14]} 8. Bg5 {[%emt 0:07:54]} O-O {[%emt 0:00:56]} 9. Bxf6 {[%emt 0:06:23]} Bxf6 {[%emt 0:00:03]} 10. Nd5 {[%emt 0:01:00]} Bg5 {[%emt 0:01:31]} 11. Bg4 {[%emt 0:06:24]} Be6 {[%emt 0:06:46]} 12. O-O {[%emt 0:12:47]} Qd7 {[%emt 0:03:46]} 13. h3 {[%emt 0:11:21]} g6 {[%emt 0:28:46]} 14. Bxe6 {[%emt 0:02:27]} fxe6 {[%emt 0:00:17]} 15. Qg4 {[%emt 0:00:31]} Bh6 {[%emt 0:04:24]} 16. Rad1 {[%emt 0:06:13]} Qf7 {[%emt 0:17:54]} 17. Nc3 {[%emt 0:03:09]} Rad8 {[%emt 0:03:19]} 18. Nb5 {[%emt 0:07:48]} Qe7 {[%emt 0:01:23]} 19. c4 {[%emt 0:02:48]} Bg7 {[%emt 0:01:36]} 20. Rd2 {[%emt 0:02:39]} Bh6 {[%emt 0:10:08]} 21. Rdd1 {[%emt 0:00:17]} Bg7 {[%emt 0:03:36]} 22. a3 {[%emt 0:00:45]} a6 {[%emt 0:04:30]} 23. Nc3 {[%emt 0:00:16]} Nd4 {[%emt 0:00:36]} 24. Nxd4 {[%emt 0:00:21]} exd4 {[%emt 0:00:02]} 25. Ne2 {[%emt 0:00:37]} e5 {[%emt 0:00:52]} 26. f4 {[%emt 0:02:44]} Rc8 {[%emt 0:01:56]} 27. b3 {[%emt 0:01:52]} b5 {[%emt 0:00:22]} 28. cxb5 {[%emt 0:02:09]} axb5 {[%emt 0:00:02]} 29. Rc1 {[%emt 0:00:20]} Rxc1 {[%emt 0:01:40]} 30. Nxc1 {[%emt 0:02:17]} exf4 {[%emt 0:03:32]} 31. Rxf4 {[%emt 0:01:46]} d5 {[%emt 0:00:36]} 32. Rxf8+ {[%emt 0:08:25]} Bxf8 {[%emt 0:00:39]} 33. e5 {[%emt 0:05:18]} Qxe5 {[%emt 0:00:17]} 34. Nd3 {[%emt 0:04:01]} Qe3+ {[%emt 0:00:12]} 35. Kh1 {[%emt 0:00:05]} Qxd3 {[%emt 0:02:40]} 36. Qe6+ {[%emt 0:00:03]} Kg7 {[%emt 0:00:08]} 37. Qe5+ {[%emt 0:00:15]} Kf7 {[%emt 0:00:26]} 38. Qxd5+ {[%emt 0:00:15]} Kf6 {[%emt 0:00:08]} 39. Qc6+ {[%emt 0:00:31]} Kg5 {[%emt 0:00:46]} 40. Qd5+ {[%emt 0:00:00]} Kh6 {[%emt 0:00:00]} 41. Qd8 {[%emt 0:03:27]} Qf1+ {[%emt 0:01:42]} 42. Kh2 {[%emt 0:00:02]} Qf4+ {[%emt 0:01:23]} 43. g3 {[%emt 0:00:21]} Qd6 {[%emt 0:00:42]} 0-1

[Event "XXIX Cracovia 2018"]
[Site "Krakow"]
[Date "2019.01.03"]
[Round "8"]
[White "Marszalek, Maciej"]
[Black "Molenda, Marcin"]
[Result "1/2-1/2"]
[ECO "D35"]
[WhiteElo "2280"]
[BlackElo "2383"]
[Annotator "NA"]
[PlyCount "25"]
[EventDate "2018.12.27"]
[EventType "swiss"]
[EventCountry "POL"]
[SourceTitle "playchess.com"]
[Source "ChessBase"]
[SourceQuality "1"]
[TimeControl "40/5400+30:1800+30"]

1. d4 {[%emt 0:00:00]} Nf6 {[%emt 0:00:00]} 2. c4 {[%emt 0:00:00]} e6 {[%emt 0:00:00]} 3. Nc3 {[%emt 0:00:47]} d5 {[%emt 0:00:24]} 4. cxd5 {[%emt 0:00:18]} exd5 {[%emt 0:00:07]} 5. Bg5 {[%emt 0:00:16]} Be7 {[%emt 0:02:48]} 6. e3 {[%emt 0:01:29]} h6 {[%emt 0:01:02]} 7. Bxf6 {[%emt 0:03:48]} Bxf6 {[%emt 0:00:11]} 8. Bd3 {[%emt 0:00:40]} O-O {[%emt 0:02:18]} 9. Nf3 {[%emt 0:00:18]} Re8 {[%emt 0:02:21]} 10. O-O {[%emt 0:03:30]} c6 {[%emt 0:01:31]} 11. Qc2 {[%emt 0:06:14]} Nd7 {[%emt 0:00:38]} 12. b4 {[%emt 0:04:04]} Nb6 {[%emt 0:12:49]} 13. Rab1 {[%emt 0:11:33]} 1/2-1/2

[Event "XXIX Cracovia 2018"]
[Site "Krakow"]
[Date "2019.01.03"]
[Round "8"]
[White "Sahil, Tickoo"]
[Black "Tomczak, Mikolaj"]
[Result "1/2-1/2"]
[ECO "A48"]
[WhiteElo "2224"]
[BlackElo "2442"]
[Annotator "NA"]
[PlyCount "46"]
[EventDate "2018.12.27"]
[EventType "swiss"]
[EventCountry "POL"]
[SourceTitle "playchess.com"]
[Source "ChessBase"]
[SourceQuality "1"]
[TimeControl "40/5400+30:1800+30"]

1. d4 Nf6 2. Nf3 g6 3. c4 Bg7 4. Nc3 O-O 5. e4 c6 6. Be2 d5 7. e5 Ne4 8. O-O Bf5 9. Qb3 Qd7 10. Be3 Rc8 11. Rac1 Nxc3 12. Rxc3 Be6 {[%emt 1:36:00]} 13. Ng5 dxc4 14. Bxc4 Bxc4 15. Qxc4 e6 16. Ne4 Qd5 17. Qxd5 exd5 18. Nd6 Rc7 19. Rb3 b6 20. Rc1 Nd7 21. Nb5 Rcc8 22. Nd6 Rc7 23. Nb5 Rcc8 1/2-1/2

[Event "XXIX Cracovia 2018"]
[Site "Krakow"]
[Date "2019.01.03"]
[Round "8"]
[White "Bus, Konrad"]
[Black "Paszewski, Mateusz"]
[Result "1/2-1/2"]
[ECO "D30"]
[WhiteElo "2221"]
[BlackElo "2342"]
[Annotator "NA"]
[PlyCount "40"]
[EventDate "2018.12.27"]
[EventType "swiss"]
[EventCountry "POL"]
[SourceTitle "playchess.com"]
[Source "ChessBase"]
[SourceQuality "1"]
[TimeControl "40/5400+30:1800+30"]

1. d4 {[%emt 0:03:28]} d5 {[%emt 0:00:00]} 2. c4 {[%emt 0:00:31]} e6 {[%emt 0:00:00]} 3. Nf3 {[%emt 0:01:00]} c6 {[%emt 0:00:00]} 4. Nbd2 {[%emt 0:01:18]} f5 {[%emt 0:05:08]} 5. g3 {[%emt 0:01:23]} Bd6 {[%emt 0:00:28]} 6. Bg2 {[%emt 0:01:04]} Nd7 {[%emt 0:03:40]} 7. Qc2 {[%emt 0:03:47]} Ngf6 {[%emt 0:13:42]} 8. O-O {[%emt 0:01:13]} O-O {[%emt 0:02:28]} 9. b3 {[%emt 0:01:13]} Qe7 {[%emt 0:05:20]} 10. Bb2 {[%emt 0:00:26]} b6 {[%emt 0:04:38]} 11. Rac1 {[%emt 0:04:53]} Bb7 {[%emt 0:03:51]} 12. Ne5 {[%emt 0:06:03]} Rac8 {[%emt 0:01:21]} 13. e3 {[%emt 0:05:43]} c5 {[%emt 0:12:20]} 14. Nxd7 {[%emt 0:07:08]} Qxd7 {[%emt 0:01:09]} 15. dxc5 {[%emt 0:01:46]} Bxc5 {[%emt 0:04:02]} 16. Rfd1 {[%emt 0:09:32]} Qe7 {[%emt 0:06:58]} 17. Qb1 {[%emt 0:08:13]} dxc4 {[%emt 0:03:51]} 18. Bxb7 {[%emt 0:01:05]} Qxb7 {[%emt 0:00:37]} 19. Bxf6 {[%emt 0:03:42]} gxf6 {[%emt 0:01:51]} 20. Nxc4 {[%emt 0:01:45]} Rfd8 {[%emt 0:01:24]} 1/2-1/2

[Event "XXIX Cracovia 2018"]
[Site "Krakow"]
[Date "2019.01.03"]
[Round "8"]
[White "Wojciechowski, Piotr"]
[Black "Baum, Jonasz"]
[Result "1/2-1/2"]
[ECO "B90"]
[WhiteElo "2210"]
[BlackElo "2302"]
[Annotator "ChessBase"]
[PlyCount "193"]
[EventDate "2018.12.27"]
[EventType "swiss"]
[EventCountry "POL"]
[SourceTitle "playchess.com"]
[Source "ChessBase"]
[SourceQuality "1"]
[TimeControl "40/5400+30:1800+30"]

1. e4 {[%emt 0:09:05]} c5 {[%emt 0:00:00]} 2. Nf3 {[%emt 0:00:25]} d6 {[%emt 0:00:00]} 3. d4 {[%emt 0:00:13]} cxd4 {[%emt 0:00:00]} 4. Nxd4 {[%emt 0:00:03]} Nf6 {[%emt 0:00:00]} 5. Nc3 {[%emt 0:00:03]} a6 {[%emt 0:00:00]} 6. Nb3 {[%emt 0:00:03]} Nc6 {[%emt 0:05:14]} 7. Be3 {[%emt 0:01:07]} Bd7 {[%emt 0:04:52]} 8. f3 {[%emt 0:00:27]} e6 {[%emt 0:03:39]} 9. Qd2 {[%emt 0:00:30]} b5 {[%emt 0:00:37]} 10. O-O-O {[%emt 0:00:52]} Rc8 {[%emt 0:01:53]} 11. Kb1 {[%emt 0:02:18]} Ne5 {[%emt 0:01:48]} 12. Qf2 {[%emt 0:01:21]} b4 {[%emt 0:05:02]} 13. Bb6 {[%emt 0:02:17]} Qe7 {[%emt 0:00:17]} 14. Ne2 {[%emt 0:00:28]} Nc4 {[%emt 0:05:24]} 15. Nf4 {[%emt 0:02:28]} e5 {[%emt 0:05:31]} 16. Bxc4 {[%emt 0:00:49]} Rxc4 {[%emt 0:00:07]} 17. Na5 {[%emt 0:00:28]} Rc8 {[%emt 0:08:30]} 18. Nb7 {[%emt 0:04:22]} exf4 {[%emt 0:03:09]} 19. Nxd6+ {[%emt 0:00:07]} Qxd6 {[%emt 0:00:04]} 20. Rxd6 {[%emt 0:00:05]} Bxd6 {[%emt 0:00:05]} 21. e5 {[%emt 0:00:03]} Bxe5 {[%emt 0:00:27]} 22. Re1 {[%emt 0:00:07]} O-O {[%emt 0:00:36]} 23. Rxe5 {[%emt 0:00:03]} Be6 {[%emt 0:06:06]} 24. Qd2 {[%emt 0:08:35]} Rfe8 {[%emt 0:02:31]} 25. b3 {[%emt 0:05:34]} Rc6 {[%emt 0:03:40]} 26. Bd8 {[%emt 0:04:38]} Nd7 {[%emt 0:08:35]} 27. Rxe6 {[%emt 0:03:55]} Rexe6 {[%emt 0:00:06]} 28. Ba5 {[%emt 0:00:09]} Nf6 {[%emt 0:06:18]} 29. Bxb4 {[%emt 0:01:04]} h6 {[%emt 0:01:52]} 30. c4 {[%emt 0:01:47]} Re3 {[%emt 0:02:03]} 31. Bd6 {[%emt 0:05:07]} g5 {[%emt 0:10:34]} 32. c5 {[%emt 0:00:55]} Rc8 {[%emt 0:00:53]} 33. Qd4 {[%emt 0:02:22]} Ne8 {[%emt 0:03:04]} 34. h4 {[%emt 0:03:45]} Ng7 {[%emt 0:03:09]} 35. hxg5 {[%emt 0:01:36]} hxg5 {[%emt 0:00:33]} 36. Qa4 {[%emt 0:02:12]} Rce8 {[%emt 0:04:02]} 37. c6 {[%emt 0:01:47]} Nf5 {[%emt 0:04:26]} 38. Bc5 {[%emt 0:01:37]} Re1+ {[%emt 0:00:20]} 39. Kb2 {[%emt 0:00:06]} Ne3 {[%emt 0:03:05]} 40. Bxe3 {[%emt 0:00:00]} R8xe3 {[%emt 0:00:00]} 41. Qa5 {[%emt 0:05:28]} R3e2+ {[%emt 0:08:12]} 42. Ka3 {[%emt 0:00:20]} Rc1 {[%emt 0:00:16]} 43. Qxg5+ {[%emt 0:01:06]} Kf8 {[%emt 0:00:50]} 44. Qd8+ {[%emt 0:05:58]} Kg7 {[%emt 0:00:12]} 45. Qd4+ {[%emt 0:00:20]} Kg8 {[%emt 0:02:29]} 46. c7 {[%emt 0:01:13]} Rec2 {[%emt 0:00:20]} 47. Qd8+ {[%emt 0:00:47]} Kg7 {[%emt 0:01:45]} 48. Qg5+ {[%emt 0:00:06]} Kh7 {[%emt 0:00:42]} 49. Qf6 {[%emt 0:02:06]} Rxc7 {[%emt 0:00:11]} 50. Qxa6 {[%emt 0:00:06]} R1c6 {[%emt 0:03:47]} 51. Qd3+ {[%emt 0:00:10]} Rg6 {[%emt 0:00:24]} 52. Qf5 {[%emt 0:01:40]} Kg8 {[%emt 0:01:52]} 53. Qxf4 {[%emt 0:05:04]} Ra7+ {[%emt 0:00:08]} 54. Kb4 {[%emt 0:00:05]} Rxa2 {[%emt 0:00:05]} 55. g4 {[%emt 0:00:28]} Rb6+ {[%emt 0:03:14]} 56. Kc3 {[%emt 0:05:43]} Ra5 {[%emt 0:00:54]} 57. Qc4 {[%emt 0:03:48]} Rab5 {[%emt 0:00:16]} 58. f4 {[%emt 0:00:12]} Kg7 {[%emt 0:00:33]} 59. b4 {[%emt 0:00:13]} Kg6 {[%emt 0:01:55]} 60. Qe4+ {[%emt 0:00:55]} Kg7 {[%emt 0:00:33]} 61. Qd4+ {[%emt 0:01:10]} Kh7 {[%emt 0:01:00]} 62. Kb3 {[%emt 0:00:00]} Kg8 {[%emt 0:00:39]} 63. Qc4 {[%emt 0:01:05]} Rb8 {[%emt 0:01:56]} 64. Ka4 {[%emt 0:01:00]} R5b7 {[%emt 0:00:11]} 65. b5 {[%emt 0:00:13]} Kf8 {[%emt 0:00:37]} 66. Qc5+ {[%emt 0:00:15]} Kg7 {[%emt 0:00:22]} 67. Kb4 {[%emt 0:01:15]} Kf6 {[%emt 0:01:32]} 68. Qd6+ {[%emt 0:05:05]} Kg7 {[%emt 0:00:05]} 69. Qc6 {[%emt 0:00:06]} Rb6 {[%emt 0:00:24]} 70. Qc3+ {[%emt 0:00:27]} Kg8 {[%emt 0:00:15]} 71. Qe5 {[%emt 0:00:06]} R6b7 {[%emt 0:00:35]} 72. Qg5+ {[%emt 0:00:43]} Kh7 {[%emt 0:00:33]} 73. Qc5 {[%emt 0:00:13]} Kg8 {[%emt 0:00:16]} 74. Kc4 {[%emt 0:00:05]} Kg7 {[%emt 0:00:59]} 75. Qe5+ {[%emt 0:03:34]} Kg8 {[%emt 0:00:11]} 76. f5 {[%emt 0:01:07]} f6 {[%emt 0:05:54]} 77. Qe6+ {[%emt 0:01:18]} Kg7 {[%emt 0:00:28]} 78. g5 {[%emt 0:01:31]} fxg5 {[%emt 0:00:51]} 79. Qg6+ {[%emt 0:00:37]} Kf8 {[%emt 0:00:50]} 80. Qf6+ {[%emt 0:00:59]} Ke8 {[%emt 0:00:43]} 81. Qg6+ {[%emt 0:02:28]} Kf8 {[%emt 0:00:09]} 82. f6 {[%emt 0:00:04]} Rc7+ {[%emt 0:00:26]} 83. Kb4 {[%emt 0:01:04]} Rcb7 {[%emt 0:00:40]} 84. Qh6+ {[%emt 0:03:50]} Kf7 {[%emt 0:00:14]} 85. Kc4 {[%emt 0:00:12]} Ke6 {[%emt 0:01:07]} 86. Qg6 {[%emt 0:01:11]} Rxb5 {[%emt 0:00:34]} 87. f7+ {[%emt 0:00:22]} Ke7 {[%emt 0:00:05]} 88. Qg7 {[%emt 0:00:14]} Rb4+ {[%emt 0:00:06]} 89. Kc3 {[%emt 0:01:01]} Rb3+ {[%emt 0:00:03]} 90. Kd2 {[%emt 0:00:11]} Rb2+ {[%emt 0:00:20]} 91. Ke3 {[%emt 0:00:04]} R8b3+ {[%emt 0:01:25]} 92. Ke4 {[%emt 0:00:19]} Rb4+ {[%emt 0:00:10]} 93. Kf5 {[%emt 0:06:01]} Rf2+ {[%emt 0:00:32]} 94. Kg6 {[%emt 0:01:55]} Rb6+ {[%emt 0:00:07]} 95. Kh5 {[%emt 0:00:05]} Rxf7 {[%emt 0:00:08]} 96. Qxg5+ {[%emt 0:00:15]} Rbf6 {[%emt 0:00:05]} 97. Qe5+ {[%emt 0:00:06]} 1/2-1/2